[Event "Live Chess"]
[Site "Chess.com"]
[Date "2021.02.06"]
[Round "-"]
[White "daodao01"]
[Black "Ekam_Dublin"]
[Result "0-1"]
[CurrentPosition "1Kq3k1/5p2/8/r7/6b1/8/8/8 w - -"]
[Timezone "UTC"]
[ECO "C46"]
[ECOUrl "https://www.chess.com/openings/Three-Knights-Opening"]
[UTCDate "2021.02.06"]
[UTCTime "20:32:29"]
[WhiteElo "984"]
[BlackElo "1023"]
[TimeControl "1200+10"]
[Termination "Ekam_Dublin won by checkmate"]
[StartTime "20:32:29"]
[EndDate "2021.02.06"]
[EndTime "20:44:32"]
[Link "https://www.chess.com/live/game/6473000994"]

1. e4 {[%clk 0:20:08.6]} 1... e5 {[%clk 0:20:08.4]} 2. Nf3 {[%clk 0:20:16.3]} 2... Nc6 {[%clk 0:20:15.9]} 3. Nc3 {[%clk 0:20:22.3]} 3... Bc5 {[%clk 0:20:23.5]} 4. Bc4 {[%clk 0:20:29.8]} 4... Nf6 {[%clk 0:20:32.1]} 5. d3 {[%clk 0:20:36.2]} 5... d6 {[%clk 0:20:40.3]} 6. Bg5 {[%clk 0:20:42.3]} 6... h6 {[%clk 0:20:43.1]} 7. Bh4 {[%clk 0:20:49.6]} 7... Bg4 {[%clk 0:20:49.5]} 8. h3 {[%clk 0:20:55.6]} 8... Bh5 {[%clk 0:20:57.3]} 9. Nd5 {[%clk 0:21:02.1]} 9... Nd4 {[%clk 0:20:57.6]} 10. Nxf6+ {[%clk 0:21:04.7]} 10... gxf6 {[%clk 0:21:06.1]} 11. g4 {[%clk 0:21:03.7]} 11... Bg6 {[%clk 0:20:57]} 12. Nxd4 {[%clk 0:21:10.6]} 12... Bxd4 {[%clk 0:21:05.7]} 13. c3 {[%clk 0:21:18.4]} 13... Bc5 {[%clk 0:21:14.5]} 14. d4 {[%clk 0:21:25.7]} 14... exd4 {[%clk 0:21:23.5]} 15. cxd4 {[%clk 0:21:33.6]} 15... Bb4+ {[%clk 0:21:31.1]} 16. Ke2 {[%clk 0:21:32.7]} 16... Qd7 {[%clk 0:21:29.8]} 17. Bd3 {[%clk 0:21:38.8]} 17... f5 {[%clk 0:21:35.7]} 18. gxf5 {[%clk 0:21:45.7]} 18... Bh5+ {[%clk 0:21:44.5]} 19. f3 {[%clk 0:21:51.7]} 19... d5 {[%clk 0:21:48.6]} 20. a3 {[%clk 0:21:49.7]} 20... Ba5 {[%clk 0:21:46.8]} 21. b4 {[%clk 0:21:57.2]} 21... Bb6 {[%clk 0:21:54.3]} 22. Bc2 {[%clk 0:21:53.8]} 22... dxe4 {[%clk 0:21:58.3]} 23. Bxe4 {[%clk 0:21:56.5]} 23... Qb5+ {[%clk 0:21:52.1]} 24. Qd3 {[%clk 0:22:02]} 24... Qxd3+ {[%clk 0:21:56.1]} 25. Kxd3 {[%clk 0:22:09.1]} 25... c6 {[%clk 0:21:57.5]} 26. Rac1 {[%clk 0:22:07.5]} 26... Bd8 {[%clk 0:22:00.2]} 27. Rhg1 {[%clk 0:22:10.8]} 27... Bxh4 {[%clk 0:21:53]} 28. a4 {[%clk 0:22:10.1]} 28... Rd8 {[%clk 0:21:52.9]} 29. b5 {[%clk 0:22:15.9]} 29... cxb5 {[%clk 0:21:58.6]} 30. axb5 {[%clk 0:22:23.3]} 30... Bf6 {[%clk 0:22:00.9]} 31. Rc4 {[%clk 0:22:25.2]} 31... b6 {[%clk 0:22:04.2]} 32. Bc6+ {[%clk 0:22:26.7]} 32... Ke7 {[%clk 0:22:00.9]} 33. Re1+ {[%clk 0:22:33.3]} 33... Kf8 {[%clk 0:22:03.2]} 34. Rg1 {[%clk 0:22:30.8]} 34... Rg8 {[%clk 0:21:53.9]} 35. Rxg8+ {[%clk 0:22:30.9]} 35... Kxg8 {[%clk 0:22:02.3]} 36. d5 {[%clk 0:22:37]} 36... Bxf3 {[%clk 0:22:05.2]} 37. Rf4 {[%clk 0:22:42.3]} 37... Bxd5 {[%clk 0:22:07.7]} 38. Rd4 {[%clk 0:22:50.2]} 38... Bxd4 {[%clk 0:22:06.8]} 39. Kxd4 {[%clk 0:22:55.9]} 39... Bxc6+ {[%clk 0:22:15.8]} 40. Kc4 {[%clk 0:23:04.7]} 40... Bg2 {[%clk 0:22:20.9]} 41. h4 {[%clk 0:23:13]} 41... Bh3 {[%clk 0:22:28.4]} 42. f6 {[%clk 0:23:20.4]} 42... Rd6 {[%clk 0:22:37.3]} 43. h5 {[%clk 0:23:25.2]} 43... Rxf6 {[%clk 0:22:44.8]} 44. Kd5 {[%clk 0:23:33.3]} 44... Rf5+ {[%clk 0:22:53.1]} 45. Kc6 {[%clk 0:23:41.3]} 45... Rxh5 {[%clk 0:23:01.8]} 46. Kb7 {[%clk 0:23:46.5]} 46... Rxb5 {[%clk 0:23:09.4]} 47. Kxa7 {[%clk 0:23:55.5]} 47... Rf5 {[%clk 0:23:16]} 48. Kxb6 {[%clk 0:24:03.9]} 48... Bg4 {[%clk 0:23:25.3]} 49. Kc6 {[%clk 0:24:12.6]} 49... h5 {[%clk 0:23:34.7]} 50. Kd6 {[%clk 0:24:21.2]} 50... h4 {[%clk 0:23:44.4]} 51. Ke7 {[%clk 0:23:45.8]} 51... h3 {[%clk 0:23:51.1]} 52. Kd6 {[%clk 0:23:50.5]} 52... h2 {[%clk 0:23:59.9]} 53. Ke7 {[%clk 0:23:57]} 53... h1=Q {[%clk 0:24:08.6]} 54. Kd6 {[%clk 0:23:30.1]} 54... Qd1+ {[%clk 0:24:16.1]} 55. Ke7 {[%clk 0:23:36.8]} 55... Qe2+ {[%clk 0:24:17.9]} 56. Kd6 {[%clk 0:23:40.1]} 56... Qe6+ {[%clk 0:24:24.2]} 57. Kc7 {[%clk 0:23:44.8]} 57... Rc5+ {[%clk 0:24:32.7]} 58. Kb7 {[%clk 0:23:47.2]} 58... Qc6+ {[%clk 0:24:38.6]} 59. Ka7 {[%clk 0:23:54.3]} 59... Ra5+ {[%clk 0:24:45]} 60. Kb8 {[%clk 0:23:35.5]} 60... Qc8# {[%clk 0:24:52.2]} 0-1

[Event "Live Chess"]
[Site "Chess.com"]
[Date "2021.02.06"]
[Round "-"]
[White "Pranil09"]
[Black "InkyEmptyMovie"]
[Result "1-0"]
[CurrentPosition "rn2qrk1/p1pp1ppQ/1pbb4/6N1/2B1P3/2NP4/PPP2PPP/R1B1K2R b KQ -"]
[Timezone "UTC"]
[ECO "C42"]
[ECOUrl "https://www.chess.com/openings/Petrovs-Defense-Classical-Variation"]
[UTCDate "2021.02.06"]
[UTCTime "20:33:00"]
[WhiteElo "630"]
[BlackElo "216"]
[TimeControl "1200+10"]
[Termination "Pranil09 won by checkmate"]
[StartTime "20:33:00"]
[EndDate "2021.02.06"]
[EndTime "20:39:57"]
[Link "https://www.chess.com/live/game/6473002983"]

1. e4 {[%clk 0:20:01.2]} 1... e5 {[%clk 0:19:54.5]} 2. Nf3 {[%clk 0:17:45.7]} 2... Nf6 {[%clk 0:19:52.5]} 3. Nxe5 {[%clk 0:17:52.7]} 3... Bd6 {[%clk 0:19:54.3]} 4. Nf3 {[%clk 0:17:56.2]} 4... O-O {[%clk 0:20:00.8]} 5. Nc3 {[%clk 0:18:04.1]} 5... Nh5 {[%clk 0:19:56.5]} 6. Bc4 {[%clk 0:17:46]} 6... Bc5 {[%clk 0:20:05.1]} 7. d3 {[%clk 0:16:54.9]} 7... b6 {[%clk 0:19:49.8]} 8. Ne5 {[%clk 0:16:44.7]} 8... Bb7 {[%clk 0:19:48.9]} 9. Nf3 {[%clk 0:16:49.5]} 9... Bc6 {[%clk 0:19:48.2]} 10. Ng5 {[%clk 0:16:53.5]} 10... Bd6 {[%clk 0:19:57]} 11. Qxh5 {[%clk 0:17:00.2]} 11... Qe8 {[%clk 0:19:51.4]} 12. Qxh7# {[%clk 0:17:07.7]} 1-0

[Event "Live Chess"]
[Site "Chess.com"]
[Date "2021.02.06"]
[Round "-"]
[White "KingOfChess2030"]
[Black "Relish_potatoes"]
[Result "0-1"]
[CurrentPosition "8/7p/6k1/7b/7K/8/p7/1r6 w - -"]
[Timezone "UTC"]
[ECO "C40"]
[ECOUrl "https://www.chess.com/openings/Kings-Pawn-Opening-Kings-Knight-Damiano-Defense"]
[UTCDate "2021.02.06"]
[UTCTime "20:34:27"]
[WhiteElo "262"]
[BlackElo "569"]
[TimeControl "1200+10"]
[Termination "Relish_potatoes won by resignation"]
[StartTime "20:34:27"]
[EndDate "2021.02.06"]
[EndTime "20:47:49"]
[Link "https://www.chess.com/live/game/6473017824"]

1. e4 {[%clk 0:19:46.1]} 1... e5 {[%clk 0:20:07.2]} 2. Nf3 {[%clk 0:19:52.3]} 2... f6 {[%clk 0:20:14.4]} 3. Bb5 {[%clk 0:19:44.6]} 3... c6 {[%clk 0:20:21.7]} 4. Ba4 {[%clk 0:19:50.6]} 4... b5 {[%clk 0:20:30.3]} 5. Bb3 {[%clk 0:19:54.8]} 5... f5 {[%clk 0:20:32.8]} 6. exf5 {[%clk 0:18:48.4]} 6... a5 {[%clk 0:20:40.7]} 7. Bxg8 {[%clk 0:18:53.9]} 7... Rxg8 {[%clk 0:20:48]} 8. Nxe5 {[%clk 0:18:57.7]} 8... Bd6 {[%clk 0:20:54.9]} 9. Nf3 {[%clk 0:19:03.7]} 9... Qe7+ {[%clk 0:20:58.7]} 10. Qe2 {[%clk 0:19:01.1]} 10... Ba6 {[%clk 0:20:55.2]} 11. Qxe7+ {[%clk 0:19:07.5]} 11... Bxe7 {[%clk 0:21:04.2]} 12. Ne5 {[%clk 0:19:10]} 12... d6 {[%clk 0:21:09.1]} 13. Nxc6 {[%clk 0:19:15.7]} 13... Nxc6 {[%clk 0:21:17.6]} 14. d3 {[%clk 0:19:22.7]} 14... b4 {[%clk 0:21:23.7]} 15. c4 {[%clk 0:19:32.3]} 15... Rf8 {[%clk 0:21:23.4]} 16. g4 {[%clk 0:19:32.4]} 16... g6 {[%clk 0:21:31]} 17. a3 {[%clk 0:19:30.7]} 17... gxf5 {[%clk 0:21:33.8]} 18. gxf5 {[%clk 0:19:38.9]} 18... Bh4 {[%clk 0:21:41.4]} 19. Rf1 {[%clk 0:19:43.8]} 19... Rxf5 {[%clk 0:21:49.3]} 20. Be3 {[%clk 0:19:48.9]} 20... bxa3 {[%clk 0:21:56.8]} 21. bxa3 {[%clk 0:19:57.1]} 21... Kf8 {[%clk 0:22:04.2]} 22. Nc3 {[%clk 0:20:01]} 22... Re8 {[%clk 0:22:12.1]} 23. Nd1 {[%clk 0:20:07.4]} 23... Ne5 {[%clk 0:21:29.2]} 24. Rb1 {[%clk 0:20:03]} 24... Nxd3+ {[%clk 0:21:26.2]} 25. Ke2 {[%clk 0:20:04]} 25... Bxc4 {[%clk 0:21:25.9]} 26. f4 {[%clk 0:19:47.3]} 26... Nxf4+ {[%clk 0:21:27.9]} 27. Kf3 {[%clk 0:19:49.7]} 27... Bxf1 {[%clk 0:21:36.4]} 28. Bxf4 {[%clk 0:19:38.4]} 28... Bd3 {[%clk 0:21:38.9]} 29. Rb3 {[%clk 0:19:44]} 29... Bc4 {[%clk 0:21:43.5]} 30. Rb1 {[%clk 0:19:48.4]} 30... d5 {[%clk 0:21:31.1]} 31. Ne3 {[%clk 0:19:13.8]} 31... Bd3 {[%clk 0:21:35.7]} 32. Nxf5 {[%clk 0:19:16.6]} 32... Bxb1 {[%clk 0:21:44.3]} 33. Ne3 {[%clk 0:19:17.9]} 33... d4 {[%clk 0:21:51.6]} 34. Nc4 {[%clk 0:19:21.5]} 34... Be4+ {[%clk 0:21:44.3]} 35. Ke2 {[%clk 0:19:17.1]} 35... Bd5+ {[%clk 0:21:46.1]} 36. Ne3 {[%clk 0:19:24]} 36... dxe3 {[%clk 0:21:54.4]} 37. Bd6+ {[%clk 0:19:27.4]} 37... Be7 {[%clk 0:22:01]} 38. Bxe7+ {[%clk 0:19:19.9]} 38... Kxe7 {[%clk 0:22:08.9]} 39. Kxe3 {[%clk 0:19:26]} 39... Kf7+ {[%clk 0:22:17.2]} 40. Kd4 {[%clk 0:19:34.4]} 40... Bg2 {[%clk 0:22:22.4]} 41. Kc4 {[%clk 0:19:39.7]} 41... Rb8 {[%clk 0:22:31.5]} 42. Kd4 {[%clk 0:19:46.4]} 42... Rb3 {[%clk 0:22:36.5]} 43. Kc4 {[%clk 0:19:54.4]} 43... Rb1 {[%clk 0:22:42.6]} 44. a4 {[%clk 0:20:00.8]} 44... Bf1+ {[%clk 0:22:50.3]} 45. Kc5 {[%clk 0:19:59]} 45... Be2 {[%clk 0:22:57.4]} 46. Kd5 {[%clk 0:20:07.4]} 46... Bd1 {[%clk 0:23:06.2]} 47. h3 {[%clk 0:20:14.4]} 47... Bxa4 {[%clk 0:23:14]} 48. h4 {[%clk 0:20:20.5]} 48... Bd1 {[%clk 0:23:23]} 49. Ke4 {[%clk 0:20:27.1]} 49... a4 {[%clk 0:23:30.9]} 50. Kf4 {[%clk 0:20:35.7]} 50... a3 {[%clk 0:23:40.1]} 51. Kg3 {[%clk 0:20:43.8]} 51... a2 {[%clk 0:23:49.3]} 52. h5 {[%clk 0:20:50.1]} 52... Bxh5 {[%clk 0:23:57.4]} 53. Kh4 {[%clk 0:20:45.1]} 53... Kg6 {[%clk 0:24:03.9]} 0-1